[Event "Titled Tuesday Blitz November 14 Early 2023"]
[White "Rangel, Daniel"]
[Black "Bortnyk, Olexandr"]
[WhiteFideId "2124475"]
[BlackFideId "14120828"]
[WhiteElo "2525"]
[BlackElo "3012"]
[Result "0-1"]
[Round "1"]
[TimeControl "180+1"]
[Date "2023.11.14"]
[WhiteClock "0:00:00"]
[BlackClock "0:00:12"]
[Board "17"]

1. c4 {[%clk 0:03:00]}  Nf6 {[%clk 0:02:32]} 2. g3 {[%clk 0:03:00]}  g6 {[%clk 0:01:54]} 3. Bg2 {[%clk 0:03:00]}  Bg7 {[%clk 0:01:53]} 4. Nc3 {[%clk 0:03:00]}  O-O {[%clk 0:01:53]} 5. e4 {[%clk 0:03:01]}  d6 {[%clk 0:01:50]} 6. Nge2 {[%clk 0:03:01]}  c5 {[%clk 0:01:48]} 7. O-O {[%clk 0:03:01]}  Nc6 {[%clk 0:01:45]} 8. d4 {[%clk 0:03:01]}  cxd4 {[%clk 0:01:12]} 9. Nxd4 {[%clk 0:03:02]}  Nxe4 {[%clk 0:00:53]} 10. Nxc6 {[%clk 0:02:59]}  Nxc3 {[%clk 0:00:53]} 11. Nxd8 {[%clk 0:02:27]}  Nxd1 {[%clk 0:00:53]} 12. Nxb7 {[%clk 0:02:27]}  Bxb7 {[%clk 0:00:40]} 13. Bxb7 {[%clk 0:02:24]}  Rab8 {[%clk 0:00:41]} 14. Rxd1 {[%clk 0:01:31]}  Rxb7 {[%clk 0:00:41]} 15. Rb1 {[%clk 0:01:11]}  Rc8 {[%clk 0:00:41]} 16. Be3 {[%clk 0:01:02]}  Rxc4 {[%clk 0:00:37]} 17. Rbc1 {[%clk 0:00:54]}  Rxc1 {[%clk 0:00:37]} 18. Rxc1 {[%clk 0:00:55]}  Bxb2 {[%clk 0:00:37]} 19. Rb1 {[%clk 0:00:50]}  Rb4 {[%clk 0:00:33]} 20. Bd2 {[%clk 0:00:45]}  Rb6 {[%clk 0:00:31]} 21. Ba5 {[%clk 0:00:28]}  Ra6 {[%clk 0:00:30]} 22. Bd8 {[%clk 0:00:09]}  Bf6 {[%clk 0:00:30]} 23. Rb7 {[%clk 0:00:08]}  Kf8 {[%clk 0:00:26]} 24. Rb8 {[%clk 0:00:08]}  Rxa2 {[%clk 0:00:24]} 25. h4 {[%clk 0:00:05]}  h5 {[%clk 0:00:24]} 26. Kg2 {[%clk 0:00:04]}  Kg7 {[%clk 0:00:23]} 27. Rb7 {[%clk 0:00:04]}  e6 {[%clk 0:00:23]} 28. Bc7 {[%clk 0:00:03]}  d5 {[%clk 0:00:21]} 29. Bd6 {[%clk 0:00:03]}  Bd4 {[%clk 0:00:21]} 30. Rb8 {[%clk 0:00:03]}  Rxf2+ {[%clk 0:00:20]} 31. Kh3 {[%clk 0:00:03]}  Re2 {[%clk 0:00:14]} 32. Bf8+ {[%clk 0:00:00]}  Kf6 {[%clk 0:00:12]} 0-1


[Site "https://www.chess.com"]

[Event "Titled Tuesday Blitz November 14 Early 2023"]
[White "Rodriguez Fontecha, Marcos"]
[Black "Vokhidov, Shamsiddin"]
[WhiteFideId "2256576"]
[BlackFideId "14204223"]
[WhiteElo "2522"]
[BlackElo "2996"]
[Result "0-1"]
[Round "1"]
[TimeControl "180+1"]
[Date "2023.11.14"]
[WhiteClock "0:00:22"]
[BlackClock "0:02:21"]
[Board "21"]

1. d4 {[%clk 0:03:00]}  Nf6 {[%clk 0:02:59]} 2. Nf3 {[%clk 0:03:01]}  d5 {[%clk 0:02:59]} 3. g3 {[%clk 0:03:00]}  c5 {[%clk 0:02:58]} 4. Bg2 {[%clk 0:02:58]}  cxd4 {[%clk 0:02:58]} 5. Nxd4 {[%clk 0:02:59]}  e5 {[%clk 0:02:58]} 6. Nb3 {[%clk 0:03:00]}  Be7 {[%clk 0:02:56]} 7. O-O {[%clk 0:02:59]}  O-O {[%clk 0:02:56]} 8. c3 {[%clk 0:02:56]}  h6 {[%clk 0:02:54]} 9. N1d2 {[%clk 0:02:52]}  Bf5 {[%clk 0:02:54]} 10. Re1 {[%clk 0:02:44]}  Nc6 {[%clk 0:02:52]} 11. e4 {[%clk 0:02:40]}  dxe4 {[%clk 0:02:52]} 12. Nc4 {[%clk 0:02:39]}  Qxd1 {[%clk 0:02:49]} 13. Rxd1 {[%clk 0:02:40]}  Rfd8 {[%clk 0:02:49]} 14. Be3 {[%clk 0:02:39]}  b6 {[%clk 0:02:48]} 15. a4 {[%clk 0:02:35]}  Nd5 {[%clk 0:02:42]} 16. h3 {[%clk 0:02:22]}  Be6 {[%clk 0:02:39]} 17. Nbd2 {[%clk 0:02:17]}  f5 {[%clk 0:02:38]} 18. Re1 {[%clk 0:01:33]}  Nxe3 {[%clk 0:02:37]} 19. Rxe3 {[%clk 0:01:31]}  Rac8 {[%clk 0:02:36]} 20. Re2 {[%clk 0:01:26]}  Rd3 {[%clk 0:02:23]} 21. Bf1 {[%clk 0:01:20]}  Rcd8 {[%clk 0:02:22]} 22. Kg2 {[%clk 0:00:22]}  Bg5 {[%clk 0:02:21]} 0-1


[Site "https://www.chess.com"]

[Event "Titled Tuesday Blitz November 14 Early 2023"]
[White "Pranesh M"]
[Black "Alinasab, Mobina"]
[WhiteFideId "35028600"]
[BlackFideId "12528897"]
[WhiteElo "2990"]
[BlackElo "2521"]
[Result "0-1"]
[Round "1"]
[TimeControl "180+1"]
[Date "2023.11.14"]
[WhiteClock "0:00:24"]
[BlackClock "0:00:13"]
[Board "22"]

1. e4 {[%clk 0:03:00]}  c5 {[%clk 0:02:59]} 2. Nf3 {[%clk 0:03:01]}  d6 {[%clk 0:02:59]} 3. d4 {[%clk 0:03:01]}  cxd4 {[%clk 0:03:00]} 4. Nxd4 {[%clk 0:03:02]}  Nf6 {[%clk 0:03:00]} 5. Nc3 {[%clk 0:03:02]}  a6 {[%clk 0:03:01]} 6. Rg1 {[%clk 0:03:02]}  e5 {[%clk 0:03:00]} 7. Nb3 {[%clk 0:03:03]}  Be6 {[%clk 0:02:57]} 8. g4 {[%clk 0:03:03]}  d5 {[%clk 0:02:58]} 9. exd5 {[%clk 0:03:04]}  Nxd5 {[%clk 0:02:58]} 10. Nxd5 {[%clk 0:03:04]}  Qxd5 {[%clk 0:02:58]} 11. Qxd5 {[%clk 0:03:05]}  Bxd5 {[%clk 0:02:59]} 12. Be3 {[%clk 0:03:05]}  Nc6 {[%clk 0:02:58]} 13. O-O-O {[%clk 0:03:06]}  O-O-O {[%clk 0:02:57]} 14. Bb6 {[%clk 0:03:06]}  Rd7 {[%clk 0:02:57]} 15. g5 {[%clk 0:03:06]}  Be6 {[%clk 0:02:55]} 16. Rxd7 {[%clk 0:03:06]}  Bxd7 {[%clk 0:02:56]} 17. Nc5 {[%clk 0:03:05]}  Bf5 {[%clk 0:02:32]} 18. Bc4 {[%clk 0:03:03]}  Bg6 {[%clk 0:02:30]} 19. Rd1 {[%clk 0:02:56]}  Be7 {[%clk 0:02:26]} 20. Bd5 {[%clk 0:02:43]}  Bxg5+ {[%clk 0:01:56]} 21. Kb1 {[%clk 0:02:42]}  Bd8 {[%clk 0:01:56]} 22. Bxc6 {[%clk 0:02:22]}  Bxb6 {[%clk 0:01:51]} 23. Nxb7 {[%clk 0:02:00]}  Kc7 {[%clk 0:01:36]} 24. Bd5 {[%clk 0:01:43]}  Rb8 {[%clk 0:01:26]} 25. f3 {[%clk 0:01:24]}  Rxb7 {[%clk 0:01:25]} 26. Bxb7 {[%clk 0:01:25]}  Kxb7 {[%clk 0:01:26]} 27. b4 {[%clk 0:01:26]}  Kc6 {[%clk 0:01:25]} 28. a4 {[%clk 0:01:25]}  Bd4 {[%clk 0:01:21]} 29. Ka2 {[%clk 0:01:23]}  f5 {[%clk 0:01:03]} 30. Kb3 {[%clk 0:01:21]}  Bh5 {[%clk 0:00:56]} 31. Rd3 {[%clk 0:01:21]}  Bg1 {[%clk 0:00:47]} 32. c4 {[%clk 0:01:10]}  e4 {[%clk 0:00:47]} 33. b5+ {[%clk 0:01:09]}  Kc7 {[%clk 0:00:42]} 34. fxe4 {[%clk 0:01:06]}  fxe4 {[%clk 0:00:42]} 35. Rd5 {[%clk 0:00:50]}  Bf3 {[%clk 0:00:28]} 36. c5 {[%clk 0:00:39]}  axb5 {[%clk 0:00:27]} 37. axb5 {[%clk 0:00:39]}  e3 {[%clk 0:00:27]} 38. b6+ {[%clk 0:00:40]}  Kc6 {[%clk 0:00:25]} 39. Re5 {[%clk 0:00:31]}  e2 {[%clk 0:00:18]} 40. Kc4 {[%clk 0:00:31]}  Bf2 {[%clk 0:00:15]} 41. Re7 {[%clk 0:00:30]}  Bd5+ {[%clk 0:00:13]} 42. Kd3 {[%clk 0:00:30]}  e1=Q {[%clk 0:00:12]} 43. Rxe1 {[%clk 0:00:29]}  Bxe1 {[%clk 0:00:13]} 44. Kd4 {[%clk 0:00:26]}  Bf2+ {[%clk 0:00:13]} 45. Ke5 {[%clk 0:00:26]}  Bxc5 {[%clk 0:00:12]} 46. b7 {[%clk 0:00:24]}  Ba7 {[%clk 0:00:13]} 0-1


[Site "https://www.chess.com"]

[Event "Titled Tuesday Blitz November 14 Early 2023"]
[White "Shubenkova, Veronika"]
[Black "Makarian, Rudik"]
[WhiteFideId "44124040"]
[BlackFideId "44105681"]
[WhiteElo "2520"]
[BlackElo "2984"]
[Result "0-1"]
[Round "1"]
[TimeControl "180+1"]
[Date "2023.11.14"]
[WhiteClock "0:00:00"]
[BlackClock "0:00:41"]
[Board "23"]

1. e4 {[%clk 0:03:00]}  c5 {[%clk 0:02:59]} 2. Nc3 {[%clk 0:03:00]}  Nc6 {[%clk 0:02:59]} 3. g3 {[%clk 0:03:01]}  g6 {[%clk 0:02:57]} 4. Bg2 {[%clk 0:03:01]}  Bg7 {[%clk 0:02:58]} 5. d3 {[%clk 0:03:01]}  d6 {[%clk 0:02:59]} 6. f4 {[%clk 0:03:02]}  Nh6 {[%clk 0:02:55]} 7. Nf3 {[%clk 0:03:02]}  O-O {[%clk 0:02:55]} 8. O-O {[%clk 0:03:01]}  f5 {[%clk 0:02:51]} 9. h3 {[%clk 0:02:54]}  Rb8 {[%clk 0:02:46]} 10. Ne2 {[%clk 0:02:54]}  b5 {[%clk 0:02:44]} 11. Rb1 {[%clk 0:02:54]}  Qd7 {[%clk 0:02:39]} 12. Be3 {[%clk 0:02:54]}  Bb7 {[%clk 0:02:26]} 13. c3 {[%clk 0:02:53]}  Kh8 {[%clk 0:02:23]} 14. Kh2 {[%clk 0:02:40]}  e6 {[%clk 0:02:19]} 15. Qc2 {[%clk 0:02:39]}  a5 {[%clk 0:02:17]} 16. Ng5 {[%clk 0:02:38]}  b4 {[%clk 0:02:12]} 17. c4 {[%clk 0:02:37]}  Nf7 {[%clk 0:02:09]} 18. h4 {[%clk 0:02:34]}  Nh6 {[%clk 0:02:08]} 19. Bh3 {[%clk 0:02:34]}  Ra8 {[%clk 0:02:05]} 20. Rbe1 {[%clk 0:02:30]}  a4 {[%clk 0:02:05]} 21. Qd1 {[%clk 0:02:28]}  Bxb2 {[%clk 0:02:02]} 22. d4 {[%clk 0:02:25]}  b3 {[%clk 0:01:57]} 23. axb3 {[%clk 0:02:14]}  a3 {[%clk 0:01:58]} 24. Qd2 {[%clk 0:02:13]}  Rfe8 {[%clk 0:01:51]} 25. dxc5 {[%clk 0:02:07]}  Rad8 {[%clk 0:01:48]} 26. Rd1 {[%clk 0:02:06]}  d5 {[%clk 0:01:05]} 27. cxd5 {[%clk 0:01:43]}  exd5 {[%clk 0:01:06]} 28. e5 {[%clk 0:01:42]}  d4 {[%clk 0:01:01]} 29. Bf2 {[%clk 0:01:32]}  Qd5 {[%clk 0:00:59]} 30. b4 {[%clk 0:01:28]}  Nxe5 {[%clk 0:00:50]} 31. Rg1 {[%clk 0:00:02]}  Nhg4+ {[%clk 0:00:47]} 32. Bxg4 {[%clk 0:00:03]}  Nxg4+ {[%clk 0:00:48]} 33. Kh3 {[%clk 0:00:03]}  Nxf2+ {[%clk 0:00:48]} 34. Kh2 {[%clk 0:00:03]}  Ng4+ {[%clk 0:00:44]} 35. Kh3 {[%clk 0:00:00]}  h6 {[%clk 0:00:41]} 0-1


[Site "https://www.chess.com"]

[Event "Titled Tuesday Blitz November 14 Early 2023"]
[White "Maghsoodloo, Parham"]
[Black "TomLiu777"]
[WhiteFideId "12539929"]
[WhiteElo "2970"]
[BlackElo "2520"]
[Result "0-1"]
[Round "1"]
[TimeControl "180+1"]
[Date "2023.11.14"]
[WhiteClock "0:00:00"]
[BlackClock "0:00:13"]
[Board "24"]

1. d4 {[%clk 0:03:00]}  Nf6 {[%clk 0:02:51]} 2. c4 {[%clk 0:02:59]}  c5 {[%clk 0:02:45]} 3. d5 {[%clk 0:02:57]}  e6 {[%clk 0:02:44]} 4. Nc3 {[%clk 0:02:57]}  exd5 {[%clk 0:02:41]} 5. cxd5 {[%clk 0:02:58]}  d6 {[%clk 0:02:39]} 6. e4 {[%clk 0:02:57]}  g6 {[%clk 0:02:38]} 7. Be2 {[%clk 0:02:55]}  Bg7 {[%clk 0:02:38]} 8. Bg5 {[%clk 0:02:55]}  O-O {[%clk 0:02:36]} 9. Nf3 {[%clk 0:02:54]}  a6 {[%clk 0:02:26]} 10. a4 {[%clk 0:02:53]}  Bg4 {[%clk 0:02:26]} 11. Nd2 {[%clk 0:02:53]}  Bxe2 {[%clk 0:02:25]} 12. Qxe2 {[%clk 0:02:53]}  Nbd7 {[%clk 0:02:26]} 13. O-O {[%clk 0:02:53]}  Re8 {[%clk 0:02:24]} 14. Be3 {[%clk 0:02:42]}  Qc7 {[%clk 0:02:00]} 15. h3 {[%clk 0:02:28]}  Rab8 {[%clk 0:01:39]} 16. Rfe1 {[%clk 0:02:16]}  Ne5 {[%clk 0:01:01]} 17. Bf4 {[%clk 0:02:07]}  Nfd7 {[%clk 0:00:49]} 18. Bg3 {[%clk 0:02:02]}  c4 {[%clk 0:00:49]} 19. Red1 {[%clk 0:01:58]}  b5 {[%clk 0:00:47]} 20. axb5 {[%clk 0:01:58]}  axb5 {[%clk 0:00:48]} 21. Ra6 {[%clk 0:01:56]}  Nc5 {[%clk 0:00:45]} 22. Bxe5 {[%clk 0:01:42]}  Nxa6 {[%clk 0:00:42]} 23. Bxg7 {[%clk 0:01:42]}  Kxg7 {[%clk 0:00:43]} 24. Nf3 {[%clk 0:01:43]}  b4 {[%clk 0:00:38]} 25. Nb1 {[%clk 0:01:39]}  c3 {[%clk 0:00:36]} 26. bxc3 {[%clk 0:01:16]}  bxc3 {[%clk 0:00:32]} 27. Rc1 {[%clk 0:00:30]}  c2 {[%clk 0:00:25]} 28. Na3 {[%clk 0:00:30]}  Nb4 {[%clk 0:00:22]} 29. Nxc2 {[%clk 0:00:21]}  Rbc8 {[%clk 0:00:16]} 30. Nfe1 {[%clk 0:00:00]}  Qc4 {[%clk 0:00:13]} 0-1


[Site "https://www.chess.com"]

[Event "Titled Tuesday Blitz November 14 Early 2023"]
[White "Gholami Orimi, Mahdi"]
[Black "HeroRubiksCube"]
[WhiteFideId "12558486"]
[WhiteElo "2967"]
[BlackElo "2519"]
[Result "1-0"]
[Round "1"]
[TimeControl "180+1"]
[Date "2023.11.14"]
[WhiteClock "0:01:21"]
[BlackClock "0:00:16"]
[Board "26"]

1. d4 {[%clk 0:03:00]}  Nf6 {[%clk 0:02:58]} 2. c4 {[%clk 0:03:01]}  e6 {[%clk 0:02:58]} 3. Nc3 {[%clk 0:03:01]}  d5 {[%clk 0:02:59]} 4. cxd5 {[%clk 0:03:01]}  exd5 {[%clk 0:03:00]} 5. Bg5 {[%clk 0:03:01]}  c6 {[%clk 0:02:59]} 6. e3 {[%clk 0:03:01]}  h6 {[%clk 0:02:59]} 7. Bh4 {[%clk 0:03:02]}  Be7 {[%clk 0:03:00]} 8. Bd3 {[%clk 0:03:02]}  O-O {[%clk 0:03:00]} 9. Nge2 {[%clk 0:03:02]}  Nbd7 {[%clk 0:03:01]} 10. Qc2 {[%clk 0:03:01]}  Re8 {[%clk 0:03:01]} 11. O-O {[%clk 0:02:51]}  Ne4 {[%clk 0:02:58]} 12. Bxe7 {[%clk 0:02:49]}  Qxe7 {[%clk 0:02:59]} 13. Rae1 {[%clk 0:02:50]}  Ndf6 {[%clk 0:02:55]} 14. f3 {[%clk 0:02:44]}  Nxc3 {[%clk 0:02:43]} 15. Nxc3 {[%clk 0:02:45]}  c5 {[%clk 0:02:43]} 16. dxc5 {[%clk 0:02:42]}  Qxc5 {[%clk 0:02:43]} 17. Nb5 {[%clk 0:02:42]}  Qxc2 {[%clk 0:02:24]} 18. Bxc2 {[%clk 0:02:43]}  Rd8 {[%clk 0:02:25]} 19. Nd4 {[%clk 0:02:43]}  Be6 {[%clk 0:02:22]} 20. Bd3 {[%clk 0:02:42]}  Rac8 {[%clk 0:02:22]} 21. Rc1 {[%clk 0:02:42]}  a6 {[%clk 0:02:22]} 22. Kf2 {[%clk 0:02:41]}  Nd7 {[%clk 0:02:21]} 23. Ke2 {[%clk 0:02:39]}  Kf8 {[%clk 0:02:19]} 24. Kd2 {[%clk 0:02:39]}  Ke7 {[%clk 0:02:19]} 25. h4 {[%clk 0:02:39]}  Ne5 {[%clk 0:02:17]} 26. b3 {[%clk 0:02:37]}  Rxc1 {[%clk 0:02:09]} 27. Rxc1 {[%clk 0:02:36]}  Rc8 {[%clk 0:02:09]} 28. Rg1 {[%clk 0:02:34]}  Nc6 {[%clk 0:01:57]} 29. Nc2 {[%clk 0:02:29]}  b5 {[%clk 0:01:55]} 30. Ra1 {[%clk 0:02:27]}  Rb8 {[%clk 0:01:47]} 31. Kc3 {[%clk 0:02:26]}  a5 {[%clk 0:01:41]} 32. a3 {[%clk 0:02:20]}  b4+ {[%clk 0:01:27]} 33. axb4 {[%clk 0:02:21]}  axb4+ {[%clk 0:01:27]} 34. Kb2 {[%clk 0:02:20]}  f5 {[%clk 0:01:22]} 35. Ra6 {[%clk 0:02:20]}  Kd7 {[%clk 0:01:18]} 36. h5 {[%clk 0:01:58]}  Ne5 {[%clk 0:01:15]} 37. Be2 {[%clk 0:01:57]}  Nc6 {[%clk 0:01:11]} 38. Nd4 {[%clk 0:01:47]}  Nxd4 {[%clk 0:01:10]} 39. exd4 {[%clk 0:01:48]}  f4 {[%clk 0:01:11]} 40. Ra7+ {[%clk 0:01:45]}  Kd6 {[%clk 0:01:05]} 41. Rxg7 {[%clk 0:01:45]}  Bf5 {[%clk 0:01:02]} 42. Rf7 {[%clk 0:01:38]}  Ke6 {[%clk 0:01:01]} 43. Rc7 {[%clk 0:01:38]}  Rg8 {[%clk 0:00:56]} 44. Bf1 {[%clk 0:01:38]}  Kd6 {[%clk 0:00:55]} 45. Rb7 {[%clk 0:01:35]}  Kc6 {[%clk 0:00:37]} 46. Rxb4 {[%clk 0:01:35]}  Rc8 {[%clk 0:00:28]} 47. Ka3 {[%clk 0:01:23]}  Ra8+ {[%clk 0:00:27]} 48. Ra4 {[%clk 0:01:23]}  Re8 {[%clk 0:00:27]} 49. Ra6+ {[%clk 0:01:21]}  Kb7 {[%clk 0:00:27]} 50. Rxh6 {[%clk 0:01:21]}  Re1 {[%clk 0:00:28]} 51. Bb5 {[%clk 0:01:21]}  Rg1 {[%clk 0:00:27]} 52. Rf6 {[%clk 0:01:21]}  Bc2 {[%clk 0:00:24]} 53. Bc6+ {[%clk 0:01:21]}  Kb6 {[%clk 0:00:22]} 54. Bxd5+ {[%clk 0:01:22]}  Ka5 {[%clk 0:00:16]} 55. Bc4 {[%clk 0:01:21]} 1-0


[Site "https://www.chess.com"]

[Event "Titled Tuesday Blitz November 14 Early 2023"]
[White "Rietze, Clemens, Dr."]
[Black "Daneshvar, Bardiya"]
[WhiteFideId "24620351"]
[BlackFideId "12576468"]
[WhiteElo "2518"]
[BlackElo "2967"]
[Result "0-1"]
[Round "1"]
[TimeControl "180+1"]
[Date "2023.11.14"]
[WhiteClock "0:00:12"]
[BlackClock "0:01:35"]
[Board "27"]

1. d4 {[%clk 0:03:00]}  Nf6 {[%clk 0:02:58]} 2. c4 {[%clk 0:03:01]}  a6 {[%clk 0:02:58]} 3. Nc3 {[%clk 0:02:52]}  c5 {[%clk 0:02:57]} 4. d5 {[%clk 0:02:45]}  b5 {[%clk 0:02:57]} 5. cxb5 {[%clk 0:02:45]}  axb5 {[%clk 0:02:58]} 6. Nxb5 {[%clk 0:02:46]}  Ne4 {[%clk 0:02:59]} 7. Nc3 {[%clk 0:02:39]}  Nxc3 {[%clk 0:02:54]} 8. bxc3 {[%clk 0:02:39]}  g6 {[%clk 0:02:55]} 9. g3 {[%clk 0:02:37]}  Bg7 {[%clk 0:02:55]} 10. Bd2 {[%clk 0:02:37]}  O-O {[%clk 0:02:54]} 11. Bg2 {[%clk 0:02:37]}  d6 {[%clk 0:02:55]} 12. Nf3 {[%clk 0:02:36]}  Ra3 {[%clk 0:02:55]} 13. O-O {[%clk 0:02:32]}  Qa5 {[%clk 0:02:55]} 14. Qc1 {[%clk 0:02:16]}  Nd7 {[%clk 0:02:54]} 15. Ne1 {[%clk 0:02:10]}  Ne5 {[%clk 0:02:49]} 16. Nc2 {[%clk 0:02:08]}  Ra4 {[%clk 0:02:47]} 17. Ne3 {[%clk 0:02:06]}  Ba6 {[%clk 0:02:40]} 18. Re1 {[%clk 0:02:03]}  Nc4 {[%clk 0:02:40]} 19. Nxc4 {[%clk 0:02:00]}  Bxc4 {[%clk 0:02:41]} 20. Qb2 {[%clk 0:01:54]}  Ra3 {[%clk 0:02:35]} 21. e4 {[%clk 0:01:44]}  Bxc3 {[%clk 0:02:31]} 22. Bxc3 {[%clk 0:01:44]}  Qxc3 {[%clk 0:02:30]} 23. Qxc3 {[%clk 0:01:40]}  Rxc3 {[%clk 0:02:31]} 24. a4 {[%clk 0:01:41]}  Ra8 {[%clk 0:02:28]} 25. a5 {[%clk 0:01:31]}  Rb3 {[%clk 0:02:22]} 26. Ra4 {[%clk 0:01:15]}  Bb5 {[%clk 0:02:17]} 27. Ra2 {[%clk 0:01:15]}  Rb4 {[%clk 0:02:15]} 28. Rea1 {[%clk 0:01:08]}  Bd3 {[%clk 0:02:03]} 29. f3 {[%clk 0:01:06]}  f5 {[%clk 0:02:00]} 30. exf5 {[%clk 0:00:52]}  Bc4 {[%clk 0:02:00]} 31. Ra4 {[%clk 0:00:44]}  Bxd5 {[%clk 0:01:55]} 32. fxg6 {[%clk 0:00:42]}  hxg6 {[%clk 0:01:53]} 33. f4 {[%clk 0:00:31]}  Bxg2 {[%clk 0:01:50]} 34. Kxg2 {[%clk 0:00:31]}  Rb2+ {[%clk 0:01:45]} 35. Kf3 {[%clk 0:00:26]}  Ra6 {[%clk 0:01:44]} 36. h4 {[%clk 0:00:20]}  d5 {[%clk 0:01:39]} 37. Re1 {[%clk 0:00:18]}  Kf7 {[%clk 0:01:37]} 38. f5 {[%clk 0:00:16]}  gxf5 {[%clk 0:01:36]} 39. Rc1 {[%clk 0:00:14]}  c4 {[%clk 0:01:36]} 40. Kf4 {[%clk 0:00:12]}  Kf6 {[%clk 0:01:35]} 0-1


[Site "https://www.chess.com"]

[Event "Titled Tuesday Blitz November 14 Early 2023"]
[White "Aravindh, Chithambaram VR."]
[Black "Purtseladze, Maka"]
[WhiteFideId "5072786"]
[BlackFideId "13602659"]
[WhiteElo "2955"]
[BlackElo "2516"]
[Result "1-0"]
[Round "1"]
[TimeControl "180+1"]
[Date "2023.11.14"]
[WhiteClock "0:00:04"]
[BlackClock "0:00:05"]
[Board "30"]

1. b3 {[%clk 0:03:00]}  Nf6 {[%clk 0:02:57]} 2. Bb2 {[%clk 0:03:00]}  g6 {[%clk 0:02:58]} 3. e3 {[%clk 0:02:58]}  Bg7 {[%clk 0:02:56]} 4. Nf3 {[%clk 0:02:59]}  O-O {[%clk 0:02:54]} 5. Be2 {[%clk 0:02:59]}  b6 {[%clk 0:02:51]} 6. O-O {[%clk 0:02:54]}  Bb7 {[%clk 0:02:51]} 7. c4 {[%clk 0:02:55]}  c5 {[%clk 0:02:47]} 8. Nc3 {[%clk 0:02:55]}  e6 {[%clk 0:02:39]} 9. d4 {[%clk 0:02:54]}  cxd4 {[%clk 0:02:23]} 10. Nxd4 {[%clk 0:02:55]}  d5 {[%clk 0:02:24]} 11. Bf3 {[%clk 0:02:53]}  Nc6 {[%clk 0:02:19]} 12. Rc1 {[%clk 0:02:18]}  Nxd4 {[%clk 0:02:11]} 13. Qxd4 {[%clk 0:02:19]}  Ne4 {[%clk 0:01:24]} 14. Qd1 {[%clk 0:02:17]}  dxc4 {[%clk 0:01:18]} 15. Bxe4 {[%clk 0:02:08]}  Bxe4 {[%clk 0:01:13]} 16. Nxe4 {[%clk 0:02:09]}  Bxb2 {[%clk 0:01:11]} 17. Rxc4 {[%clk 0:02:10]}  Qxd1 {[%clk 0:00:46]} 18. Rxd1 {[%clk 0:02:11]}  Rfd8 {[%clk 0:00:47]} 19. Rb1 {[%clk 0:01:53]}  Rac8 {[%clk 0:00:31]} 20. Kf1 {[%clk 0:01:23]}  Rxc4 {[%clk 0:00:30]} 21. bxc4 {[%clk 0:01:24]}  Ba3 {[%clk 0:00:31]} 22. Ke2 {[%clk 0:01:23]}  f5 {[%clk 0:00:31]} 23. Nc3 {[%clk 0:01:21]}  Bc5 {[%clk 0:00:23]} 24. Nb5 {[%clk 0:01:15]}  Rd7 {[%clk 0:00:23]} 25. h4 {[%clk 0:00:57]}  Kf7 {[%clk 0:00:23]} 26. g3 {[%clk 0:00:57]}  Ke7 {[%clk 0:00:23]} 27. Nc3 {[%clk 0:00:51]}  Rc7 {[%clk 0:00:22]} 28. Kd3 {[%clk 0:00:50]}  Rd7+ {[%clk 0:00:19]} 29. Kc2 {[%clk 0:00:50]}  Rc7 {[%clk 0:00:20]} 30. Ne2 {[%clk 0:00:50]}  Bd6 {[%clk 0:00:17]} 31. Kb3 {[%clk 0:00:49]}  a6 {[%clk 0:00:15]} 32. Nd4 {[%clk 0:00:46]}  e5 {[%clk 0:00:15]} 33. Ne2 {[%clk 0:00:46]}  b5 {[%clk 0:00:15]} 34. cxb5 {[%clk 0:00:46]}  axb5 {[%clk 0:00:16]} 35. Nc3 {[%clk 0:00:47]}  Rb7 {[%clk 0:00:12]} 36. e4 {[%clk 0:00:40]}  b4 {[%clk 0:00:11]} 37. Nd5+ {[%clk 0:00:40]}  Ke6 {[%clk 0:00:11]} 38. f3 {[%clk 0:00:40]}  Ra7 {[%clk 0:00:11]} 39. Rf1 {[%clk 0:00:28]}  Ra3+ {[%clk 0:00:11]} 40. Kb2 {[%clk 0:00:27]}  fxe4 {[%clk 0:00:12]} 41. fxe4 {[%clk 0:00:28]}  Rxg3 {[%clk 0:00:12]} 42. Rf6+ {[%clk 0:00:28]}  Kd7 {[%clk 0:00:13]} 43. Rf7+ {[%clk 0:00:27]}  Kc6 {[%clk 0:00:13]} 44. Rxh7 {[%clk 0:00:28]}  Rg2+ {[%clk 0:00:13]} 45. Kb3 {[%clk 0:00:28]}  Re2 {[%clk 0:00:09]} 46. Nf6 {[%clk 0:00:22]}  Re3+ {[%clk 0:00:08]} 47. Kb2 {[%clk 0:00:20]}  Bc5 {[%clk 0:00:09]} 48. Rg7 {[%clk 0:00:15]}  Bd4+ {[%clk 0:00:10]} 49. Kc2 {[%clk 0:00:16]}  Re2+ {[%clk 0:00:10]} 50. Kb3 {[%clk 0:00:16]}  Rb2+ {[%clk 0:00:10]} 51. Kc4 {[%clk 0:00:16]}  Rxa2 {[%clk 0:00:08]} 52. Rxg6 {[%clk 0:00:16]}  Rb2 {[%clk 0:00:06]} 53. Nd5+ {[%clk 0:00:15]}  Kd7 {[%clk 0:00:07]} 54. h5 {[%clk 0:00:09]}  Rh2 {[%clk 0:00:08]} 55. Kxb4 {[%clk 0:00:07]}  Ke8 {[%clk 0:00:04]} 56. h6 {[%clk 0:00:05]}  Kf7 {[%clk 0:00:05]} 57. Rf6+ {[%clk 0:00:03]}  Kg8 {[%clk 0:00:05]} 58. Ne7+ {[%clk 0:00:03]}  Kh7 {[%clk 0:00:06]} 59. Nf5 {[%clk 0:00:03]}  Re2 {[%clk 0:00:05]} 60. Rf7+ {[%clk 0:00:03]}  Kh8 {[%clk 0:00:05]} 61. Rf8+ {[%clk 0:00:03]}  Kh7 {[%clk 0:00:05]} 62. Rf7+ {[%clk 0:00:03]}  Kh8 {[%clk 0:00:05]} 63. Ne7 {[%clk 0:00:04]}  Rh2 {[%clk 0:00:05]} 64. Ng6+ {[%clk 0:00:03]}  Kg8 {[%clk 0:00:05]} 65. Rg7# {[%clk 0:00:04]} 1-0


[Site "https://www.chess.com"]